{"text_format":"1","workbook":"xlsx","n_sheets":5,"sheets":["CLASSIFICAÇÃO GERAL 2025","set2025","out2025","nov2025","dez2025"],"not_rendered":{"charts":0,"images":2,"macros":1,"external_links":0,"defined_names":1,"comments":0,"pivot_tables":0},"unopened":[],"bounds":{"document_bytes":16777216,"sheet_cells":100000,"rows_first":2000,"rows_last":500,"rows_between":2000,"halvings":0,"cell_chars":16384,"cell_head_chars":4096},"cells_cut":0,"cells_raw":0,"read":"whole","date_system":"1900"}

{"sheet":"CLASSIFICAÇÃO GERAL 2025","index":0,"n_rows":153,"n_cols":5,"rows_kept":153,"cut":false,"hidden":false,"merged":[[0,0,0,4],[1,0,1,4]]}
["CLASSIFICAÇÃO GERAL ACPA – TEMPORADA 2025 SÁBADO"]
["COLEIRO FIBRA","Pássaro","Proprietário","Origem","Pontos"]
["POSIÇÃO","NOME DO PÁSSARO","NOME DO PROPRIETÁRIO","ORIGEM (CIDADE)","PONTUAÇÃO"]
["1º","MACACO","ILSON","SÃO JOSÉ",{"$f":"30+30+30+30+30+28+24+24","v":226}]
["2º","BAILARINO","MATHEUS/FELIPE","JUIZ DE FORA/M. BARBOSA",{"$f":"20+30+16+24+20+14+20+22+17+28","v":211}]
["3º","BOPE","LOIRIN/DOMINGOS","PARAÍBA DO SUL",{"$f":"24+20+18+22+28","v":112}]
["4º","MÁGICO","ILSON","SÃO JOSÉ",{"$f":"28+23+26+28","v":105}]
["5º","CRISTAL","FAMÍLIA HONORATO","PARAÍBA DO SUL",{"$f":"18+21+26+18","v":83}]
["6º","COISA LINDA","MARCÃO","JUIZ DE FORA",{"$f":"28+24+28","v":80}]
["7º","SHEIK","JONAS","TRÊS RIOS",{"$f":"22+30+28","v":80}]
["8º","PODEROSO CHEFINHO","RODRIGO/BRUNO","PETRÓPOLIS",{"$f":"21+19+15+23","v":78}]
["9º","METRALHA","RAUANI VALLE","TRÊS RIOS",{"$f":"23+30+23","v":76}]
["10º","VENON JÚNIOR","MURILO","TRÊS RIOS",{"$f":"26+26+20","v":72}]
["11º","CHUCALHO DE COBRA","LUCIMAR/LUIZ HENRIQUE","TRÊS RIOS",{"$f":"26+23+20","v":69}]
["12º","BINHA PRETO","EULER","TRÊS RIOS",{"$f":"19+22+15","v":56}]
["13º","REVELAÇÃO","ANTÔNIO MENEGUIT","CACHOEIRA DE MACACU",{"$f":"17+16+19","v":52}]
["14º","CHARADA","UESLEI","PARAÍBA DO SUL",{"$f":"26+21","v":47}]
["15º","BRILHANTE","FLÁVIO","PATY DO ALFERES",{"$f":"16+30","v":46}]
["16º","MENINO MALUCO","BRUNO","TRÊS RIOS",{"$f":"24+19","v":43}]
["17º","FARRAPO DOIDO","JOÃO MARCOS","AREAL",{"$f":"19+22","v":41}]
["18º","GAGUINHO","JUNINHO","TRÊS RIOS",{"$f":"20+19","v":39}]
["19º","DO BRONX","ROGÉRIO","JUIZ DE FORA",{"$f":"21+17","v":38}]
["20º","MOHAWK","ARTHUR","JUIZ DE FORA",{"$f":"24+14","v":38}]
["21º","PORCHE","JANDERSON","TRÊS RIOS",{"$f":"15+23","v":38}]
["22º","TAURUS","HENRIQUE","ANTA",{"$f":"24+14","v":38}]
["23º","FERRARI","REGINALDO","PETRÓPOLIS",{"$f":"22+15","v":37}]
["24º","GUERREIRO","ANTÔNIO MENEGUIT","CACHOEIRAS DE MACACU",{"$f":"16+21","v":37}]
["25º","FORJA","HENRIQUE MORAES","SÃO JOSÉ",{"$f":"22+14","v":36}]
["26º","EDWARD","OTONIEL","TRÊS RIOS",{"$f":"18+17","v":35}]
["27º","FAISCA","JOSÉ SÉRGIO","PARAÍBA DO SUL",{"$f":"13+22","v":35}]
["28º","PHD","MARCELO SOJUF","JUIZ DE FORA",{"$f":"18+17","v":35}]
["29º","RISKINHO","JOANE","PARAÍBA DO SUL",{"$f":"22+13","v":35}]
["30º","SAMÁ","LUCAS","TRÊS RIOS",{"$f":"14+20","v":34}]
["31º","PESADELO","HENRIQUE","ANTA",{"$f":"13+20","v":33}]
["32º","RABO DE PEIXE","LUCIMAR/LUIZ HENRIQUE","TRÊS RIOS",{"$f":"15+16","v":31}]
["33º","CORINGA","PLISCILEY (JOVEM)","LAVRAS",30]
["34º","HERÓI DE GUERRA","RODRIGO/BRUNO","PETRÓPOLIS",30]
["35º","MARAVILHA","BRUNO PLACAS","SÃO JOSÉ",30]
["36º","PÉROLA NEGRA","ROMÁRIO","PETRÓPOLIS",30]
["37º","BIPOLAR","DINO/VINY","MATIAS BARBOSA",28]
["38º","DIGNO","JUNINHO","TRÊS RIOS",28]
["39º","FÓRMULA 1","REGINALDO","PETRÓPOLIS",28]
["40º","MAGO","SÍLVIO","SANTOS DUMONT",28]
["41º","TURBINA","DEIVID","JUIZ DE FORA",28]
["42º","500 MILHAS","FLÁVIO","PATY DO ALFERES",26]
["43º","BONES","EDI WILSON","PETRÓPOLIS",26]
["44º","CARRASCO","LUCAS","TRÊS RIOS",26]
["45º","CORUJA","RODRIGO/BRUNO","PETRÓPOLIS",26]
["46º","ESPOLETA","RAFAEL SOUZA","NITERÓI",26]
["47º","MAVERICK","ANDRÉ LUÍS","PARAÍBA DO SUL",26]
["48º","TRÓIA","BRUNO","TRÊS RIOS",26]
["49º","GAROTO","BRUNO","TRÊS RIOS",24]
["50º","JAMELÃO","CH FAMÍLIA MINGAL","PARAÍBA DO SUL",24]
["51º","PIT BULL","JOÃO MARCOS","AREAL",24]
["52º","PRESTO","SÍLVIO","SANTOS DUMONT",24]
["53º","TIRO CERTO","LEANDRO/GABRIEL","PARAÍBA DO SUL",24]
["54º","BESTEIRINHA","EULER","TRÊS RIOS",23]
["55º","FANTASMA","CLÓVIS/RODRIGO","TRÊS RIOS",23]
["56º","GARGALHADA","CICINHO","PARAÍBA DO SUL",23]
["57º","HORUS","DANIEL","BAHIA",23]
["58º","MÁGICO","EDGARD","TRÊS RIOS",23]
["59º","PATRÃO","WL FAMÍLIA MINGAL","PARAÍBA DO SUL",23]
["60º","ZIDANE","GUSTAVO/JHONATA","PARAÍBA DO SUL",23]
["61º","FILHOTE","FAMÍLIA MINGAL","PARAÍBA DO SUL",22]
["62º","IMPOSSÍVEL","DINO/PIA","MATIAS BARBOSA",22]
["63º","TAS","LUCAS/DANIEL","MATIAS BARBOSA",22]
["64º","VENENO","ALESSANDRO","PARAÍBA DO SUL",22]
["65º","ASTERIX","RATINHO","VALENÇA",21]
["66º","JILÓ","GABRIEL/WL FAM.MINGAL","PARAÍBA DO SUL",21]
["67º","MAGISTRAL","REGINALDO","PETRÓPOLIS",21]
["68º","PIVETE","GILSON/GUSTAVO","TRÊS RIOS/S. DUMONT",21]
["69º","PROFESSOR","RAUANI VALLE","TRÊS RIOS",21]
["70º","RAT","THIAGO/RONYELLE","TRÊS RIOS",21]
["71º","RESISTENTE","JOSÉ SÉRGIO","PARAÍBA DO SUL",21]
["72º","TRUQUE","REGINALDO","PETRÓPOLIS",21]
["73º","CARA PRETA","FÁBIO","TRÊS RIOS",20]
["74º","MACALÉ","GUSTAVO/GILSON","TRÊS RIOS/S. DUMONT",20]
["75º","MASSACRE","NI SANTANA","TRÊS RIOS",20]
["76º","POP STAR","BAIANO","VASSOURAS",20]
["77º","DECO","CLÁUDIO MÁRCIO","TRÊS RIOS",19]
["78º","HULK","CH FAMÍLIA MINGAL","PARAÍBA DO SUL",19]
["79º","LOCOMOTIVA","CLÓVIS/RODRIGO","TRÊS RIOS",19]
["80º","MIRAGEM","DIEGO TOLEDO","VISCONDE DO RIO BRANCO",19]
["81º","PINTA NEGRA","RATINHO","VALENÇA",19]
["82º","RARIDADE","GUSTAVO/JHONATA","PARAÍBA DO SUL",19]
["83º","SERENO","ROMÁRIO","AREAL",19]
["84º","ASTRO","MARCELO","SANTOS DUMONT",18]
["85º","EXPRESSO","RAUANI VALLE","TRÊS RIOS",18]
["86º","IMPERADOR","GILSON/GUSTAVO","SANTOS DUMONT",18]
["87º","MAESTRO","MÁRCIO","PARAÍBA DO SUL",18]
["88º","MURALHA","RAPHAEL","MATIAS BARBOSA",18]
["89º","SELVAGEM","JOSENILTON","PARAÍBA DO SUL",18]
["90º","TUBARÃO","RONYELLE","TRÊS RIOS",18]
["91º","18K","RAUANI VALLE","TRÊS RIOS",17]
["92º","BAIANO","BRUNO","TRÊS RIOS",17]
["93º","BMW","CT ALPHA","PARAÍBA DO SUL",17]
["94º","CAMARO","SILAS FLÁVIO","TRÊS RIOS",17]
["95º","CARA PRETA","DIEGO","MATIAS BARBOSA",17]
["96º","MAGNÍFICO","ANTÔNIO CARLOS","MATIAS BARBOSA",17]
["97º","XODÓ","GUSTAVO/GILSON","TRÊS RIOS/S. DUMONT",17]
["98º","ABUTRE","RODRIGO/BRUNO","PETRÓPOLIS",16]
["99º","AK TROVÃO","ALEX LAMA/JOSÉ SÉRGIO","PARAÍBA DO SUL",16]
["100º","BBS","DHACO","PARAÍBA DO SUL",16]
["101º","BICO DE OURO","FAMÍLIA HONORATO","PARAÍBA DO SUL",16]
["102º","OURO FINO","LUCAS","TRÊS RIOS",16]
["103º","RENEGADO","GABRIEL","PETRÓPOLIS",16]
["104º","THANOS","SILAS","TRÊS RIOS",16]
["105º","GARGAMEL","LUIZ PENA BRANCA","JUIZ DE FORA",15]
["106º","IMAGINÁRIO","WALDECIR","PETRÓPOLIS",15]
["107º","NEIMAR","ALEX LAMA/JOSÉ SÉRGIO","PARAÍBA DO SUL",15]
["108º","PIT BULL","HENRIQUE","ANTA",15]
["109º","PIVETE","GUSTAVO/GILSON","TRÊS RIOS/S. DUMONT",15]
["110º","SHARK","DINO/MARCELINHO","MATIAS BARBOSA",15]
["111º","BOLT","RODRIGO/BRUNO","PETRÓPOLIS",14]
["112º","ÊXTASE","KLEBER","AREAL",14]
["113º","FLASH","RODRIGO","SÃO JOSÉ",14]
["114º","FORA DA LEI","GILSON/GUSTAVO","TRÊS RIOS/S. DUMONT",14]
["115º","OURO FINO","EULER","TRÊS RIOS",14]
["116º","RM SEM FREIO","WILSON LÚCIO","JUIZ DE FORA",14]
["117º","AGRESSIVO","DOUGLAS","VASSOURAS",13]
["118º","CABALLO","GUSTAVO/GILSON","TRÊS RIOS/S. DUMONT",13]
["119º","INVASÃO","WATILA","JUIZ DE FORA",13]
["120º","LUXÚRIA","RAUANI VALLE","TRÊS RIOS",13]
["121º","REVELAÇÃO","DANILO MOREIRA","TRÊS RIOS",13]
["122º","SINISTRO","MATEUS MEDEIROS","PARAÍBA DO SUL",13]
["123º","VEDITA","HARRISON","SANTOS DUMONT",13]
["124º","XEQUE MATE","RODRIGO","SÃO JOSÉ",13]
["125º"]
["126º"]
["127º"]
["128º"]
["129º"]
["130º"]
["131º"]
["132º"]
["133º"]
["134º"]
["135º"]
["136º"]
["137º"]
["138º"]
["139º"]
["140º"]
["141º"]
["142º"]
["143º"]
["144º"]
["145º"]
["146º"]
["147º"]
["148º"]
["149º"]
["150º"]

{"sheet":"set2025","index":1,"n_rows":22,"n_cols":13,"rows_kept":22,"cut":false,"hidden":false,"merged":[[0,0,0,5],[0,7,0,12]]}
["13/09/2025 (SÁBADO)",null,null,null,null,null,null,"20/09/2025 (SÁBADO)"]
["POS.","PÁSSARO","PROPRIETÁRIO","ORIGEM","CANTOS","PONTOS",null,"POS.","PÁSSARO","PROPRIETÁRIO","ORIGEM","CANTOS","PONTOS"]
["1º","HERÓI DE GUERRA","RODRIGO/BRUNO","PETRÓPOLIS",166,30,null,"1º","CORINGA","PLISCILEY (JOVEM)","LAVRAS",178,30]
["2º","FÓRMULA 1","REGINALDO","PETRÓPOLIS",165,28,null,"2º","COISA LINDA","MARCÃO","JUIZ DE FORA",149,28]
["3º","CHARADA","HENRIQUE","PARAÍBA DO SUL",140,26,null,"3º","CHUCALHO DE COBRA","LUCIMAR/LUIZ HENRIQUE","TRÊS RIOS",148,26]
["4º","JAMELÃO","CH FAMÍLIA MINGAL","PARAÍBA DO SUL",126,24,null,"4º","GAROTO","BRUNO","TRÊS RIOS",123,24]
["5º","PATRÃO","WL FAMÍLIA MINGAL","PARAÍBA DO SUL",122,23,null,"5º","HORUS","DANIEL","BAHIA",108,23]
["6º","FILHOTE","FAMÍLIA MINGAL","PARAÍBA DO SUL",118,22,null,"6º","TAS","LUCAS/DANIEL","MATIAS BARBOSA",77,22]
["7º","TRUQUE","REGINALDO","PETRÓPOLIS",111,21,null,"7º","DO BRONX","ROGÉRIO","JUIZ DE FORA",64,21]
["8º","GAGUINHO","FABINHO","TRÊS RIOS",97,20,null,"8º","BAILARINO","MATHEUS/FELIPE","MATIAS BARBOSA",62,20]
["9º","HULK","CH FAMÍLIA MINGAL","PARAÍBA DO SUL",67,19,null,"9º","RARIDADE","GUSTAVO/JHONATA","PARAÍBA DO SUL",50,19]
["10º","TUBARÃO","RONYELLE","TRÊS RIOS",62,18,null,"10º"]
["11º","CAMARO","SILAS FLÁVIO","TRÊS RIOS",57,17,null,"11º"]
["12º","GUERREIRO","ANTÔNIO MENEGUIT","CACHOEIRAS DE MACACU",46,16,null,"12º"]
["13º",null,null,null,null,null,null,"13º"]
["14º",null,null,null,null,null,null,"14º"]
["15º",null,null,null,null,null,null,"15º"]
["16º",null,null,null,null,null,null,"16º"]
["17º",null,null,null,null,null,null,"17º"]
["18º",null,null,null,null,null,null,"18º"]
["19º",null,null,null,null,null,null,"19º"]
["20º",null,null,null,null,null,null,"20º"]

{"sheet":"out2025","index":2,"n_rows":42,"n_cols":27,"rows_kept":42,"cut":false,"hidden":false,"merged":[[0,0,0,5],[0,7,0,12],[0,14,0,19],[0,21,0,26]]}
["04/10/2025 (SÁBADO)",null,null,null,null,null,null,"11/10/2025 (SÁBADO)",null,null,null,null,null,null,"18/10/2025 (SÁBADO)",null,null,null,null,null,null,"25/10/2025 (SÁBADO)"]
["POS.","PÁSSARO","PROPRIETÁRIO","ORIGEM","CANTOS","PONTOS",null,"POS.","PÁSSARO","PROPRIETÁRIO","ORIGEM","CANTOS","PONTOS",null,"POS.","PÁSSARO","PROPRIETÁRIO","ORIGEM","CANTOS","PONTOS",null,"POS.","PÁSSARO","PROPRIETÁRIO","ORIGEM","CANTOS","PONTOS"]
["1º","BAILARINO","MATHEUS/FELIPE","MATIAS BARBOSA",214,30,null,"1º","BRILHANTE","FLÁVIO","PATY DO ALFERES",240,30,null,"1º","SHEIK","JONAS","TRÊS RIOS",182,30,null,"1º","MACACO","ILSON","SÃO JOSÉ",210,30]
["2º","BIPOLAR","DINO/VINY","MATIAS BARBOSA",205,28,null,"2º","COISA LINDA","MARCÃO","JUIZ DE FORA",201,28,null,"2º","DIGNO","JUNINHO","TRÊS RIOS",140,28,null,"2º","MAGO","SÍLVIO","SANTOS DUMONT",180,28]
["3º","500 MILHAS","FLÁVIO","PATY DO ALFERES",187,26,null,"3º","CORUJA","RODRIGO/BRUNO","PETRÓPOLIS",187,26,null,"3º","VENON JÚNIOR","MURILO","TRÊS RIOS",137,26,null,"3º","VENON JÚNIOR","MURILO","TRÊS RIOS",163,26]
["4º","COISA LINDA","MARCÃO","JUIZ DE FORA",186,24,null,"4º","BOPE","LOIRIN/DOMINGOS","PARAÍBA DO SUL",186,24,null,"4º","BAILARINO","MATHEUS/FELIPE","JUIZ DE FORA/M. BARBOSA",131,24,null,"4º","PRESTO","SÍLVIO","SANTOS DUMONT",151,24]
["5º","CHUCALHO DE COBRA","LUCIMAR/LUIZ HENRIQUE","TRÊS RIOS",173,23,null,"5º","FANTASMA","CLÓVIS/RODRIGO","TRÊS RIOS",174,23,null,"5º","GARGALHADA","CICINHO","PARAÍBA DO SUL",130,23,null,"5º","PORCHE","JANDERSON","TRÊS RIOS",144,23]
["6º","IMPOSSÍVEL","DINO/PIA","MATIAS BARBOSA",166,22,null,"6º","SHEIK","JONAS","TRÊS RIOS",165,22,null,"6º","FERRARI","REGINALDO","?",124,22,null,"6º","FORJA","HENRIQUE MORAES","SÃO JOSÉ",140,22]
["7º","GUERREIRO","ANTÔNIO MENEGUIT","CACHOEIRAS DE MACACU",161,21,null,"7º","PROFESSOR","RAUANI VALLE","TRÊS RIOS",151,21,null,"7º","PODEROSO CHEFINHO","?","SANTOS DUMONT",122,21,null,"7º","CRISTAL","FAMÍLIA HONORATO","PARAÍBA DO SUL",140,21]
["8º","MACALÉ","GUSTAVO/GILSON","TRÊS RIOS/S. DUMONT",156,20,null,"8º","CHUCALHO DE COBRA","LUCIMAR/LUIZ HENRIQUE","TRÊS RIOS",143,20,null,"8º","BOPE","LOIRIN/DOMINGOS","PARAÍBA DO SUL",122,20,null,"8º","BAILARINO","MATHEUS/FELIPE","MATIAS BARBOSA",133,20]
["9º","GAGUINHO","JUNINHO","TRÊS RIOS",153,19,null,"9º","LOCOMOTIVA","CLÓVIS/RODRIGO","TRÊS RIOS",132,19,null,"9º","BINHA PRETO","EULER","TRÊS RIOS",113,19,null,"9º","DECO","CLÁUDIO MÁRCIO","TRÊS RIOS",125,19]
["10º","ASTRO","MARCELO","SANTOS DUMONT",147,18,null,"10º","CRISTAL","FAMÍLIA HONORATO","PARAÍBA DO SUL",127,18,null,"10º","MAESTRO","MÁRCIO","PARAÍBA DO SUL",109,18,null,"10º","BOPE","LOIRIN/DOMINGOS","PARAÍBA DO SUL",124,18]
["11º","MAGNÍFICO","ANTÔNIO CARLOS","MATIAS BARBOSA",146,17,null,"11º","BAIANO","BRUNO","TRÊS RIOS",126,17,null,"11º","DO BRONX","ROGÉRIO","JUIZ DE FORA",107,17,null,"11º","XODÓ","GUSTAVO/GILSON","TRÊS RIOS/S. DUMONT",122,17]
["12º","BRILHANTE","FLÁVIO","PATY DO ALFERES",145,16,null,"12º","BAILARINO","MATHEUS/FELIPE","JUIZ DE FORA/M. BARBOSA",118,16,null,"12º","ABUTRE","RODRIGO/BRUNO","PETRÓPOLIS",107,16,null,"12º","BICO DE OURO","FAMÍLIA HONORATO","PARAÍBA DO SUL",119,16]
["13º","SHARK","DINO/MARCELINHO","MATIAS BARBOSA",143,15,null,"13º","IMAGINÁRIO","WALDECIR","PETRÓPOLIS",118,15,null,"13º","PORCHE","JANDERSON","TRÊS RIOS",103,15,null,"13º","FERRARI","REGINALDO","PETRÓPOLIS",115,15]
["14º","ÊXTASE","KLEBER","AREAL",141,14,null,"14º","SAMA","LUCAS","TRÊS RIOS",114,14,null,"14º","OURO FINO","EULER","TRÊS RIOS",99,14,null,"14º","BOLT","RODRIGO/BRUNO","PETRÓPOLIS",114,14]
["15º","VEDITA","HARRISON","SANTOS DUMONT",123,13,null,"15º","AGRESSIVO","DOUGLAS","VASSOURAS",110,13,null,"15º","PESADELO","HENRIQUE","ANTA",98,13,null,"15º","LUXÚRIA","RAUANI VALLE","TRÊS RIOS",113,13]
["16º","DO BRONX","ROGÉRIO","JUIZ DE FORA",119,null,null,"16º","MENINO MALUCO","BRUNO","TRÊS RIOS",110,null,null,"16º","FARRAPO DOIDO","JOÃO MARCOS","AREAL",95,null,null,"16º","CHARADA","GABRIEL MARTINS","PARAÍBA DO SUL",108]
["17º","OURO FINO","EULER","TRÊS RIOS",119,null,null,"17º","TROVÃO","LUCIMAR/LUIZ HENRIQUE","TRÊS RIOS",105,null,null,"17º","PELÉ","WILLIAM","TRÊS RIOS",94,null,null,"17º","VINGADOR","SÍLVIO","SANTOS DUMONT",107]
["18º","PIVETE","GILSON/GUSTAVO","TRÊS RIOS/S. DUMONT",114,null,null,"18º","DO BRONX","ROGÉRIO","JUIZ DE FORA",99,null,null,"18º","ATHOS","DANIEL","SANTOS DUMONT",93,null,null,"18º","BAIXARIA","FAMÍLIA HONORATO","PARAÍBA DO SUL",104]
["19º","GPS","JAJA","SANTOS DUMONT",113,null,null,"19º","RAIO","BAIANO","VASSOURAS",93,null,null,"19º","LAMPIÃO","GABRIEL","PETRÓPOLIS",89,null,null,"19º","MARGARINA","CLÁUDIO MÁRCIO","TRÊS RIOS",104]
["20º","SAMA","LUCAS","TRÊS RIOS",111,null,null,"20º","LACOSTE","UESLEI","PARAÍBA DO SUL",93,null,null,"20º","BAIXARIA","FAMÍLIA HONORATO","PARAÍBA DO SUL",86,null,null,"20º","PHD","MARCELO SOJUF","JUIZ DE FORA",102]
["21º","PATO DONALD","REGINALDO","PETRÓPOLIS",110,null,null,"21º","CIBORG","HENRIQUE","ANTA",88,null,null,"21º","FUGITIVO","LUCIANO","PARAÍBA DO SUL",85,null,null,"21º","ASTRO","FAMÍLIA MINGAL","PARAÍBA DO SUL",88]
["22º","SOBREVIVENTE","WL FAMÍLIA MINGAL","PARAÍBA DO SUL",108,null,null,"22º","BICO DE PRATA","GUSTAVO","PARAÍBA DO SUL",78,null,null,"22º","CRISTAL","FAMÍLIA HONORATO","PARAÍBA DO SUL",82,null,null,"22º","PARDAL","GABRIEL/WL FAMÍLIA MINGAL","PARAÍBA DO SUL",87]
["23º","JILÓ","GABRIEL/WL FAMÍLIA MINGAL","PARAÍBA DO SUL",106,null,null,"23º","THANOS","SILAS","TRÊS RIOS",60,null,null,"23º","ACEROLA","KLEBER","AREAL",70,null,null,"23º","SELVAGEM","GABRIEL/WL FAMÍLIA MINGAL","PARAÍBA DO SUL",86]
["24º","TALISMÃ","HENRIQUE","ANTA",94,null,null,"24º","MITO","PIA","SANTOS DUMONT",54,null,null,"24º","MESSI","JONAS","TRÊS RIOS",48,null,null,"24º","RENEGADO","HENRIQUE","ANTA",82]
["25º","175","WEY","SANTOS DUMONT",92,null,null,"25º","DIGNO","JULIO CÉSAR","?",43,null,null,"25º","PAPEL","RODRIGO","JUIZ DE FORA",38,null,null,"25º","RAGNAR","DANILO MOREIRA","TRÊS RIOS",80]
["26º","BILOA","RODRIGO/BRUNO","PETRÓPOLIS",91,null,null,"26º",null,null,null,null,null,null,"26º","RAJADA","DANIEL","SANTOS DUMONT",38,null,null,"26º","EL LOKO","LEVI","TRÊS RIOS",75]
["27º","FURIOSO","LEANDRO","SANTOS DUMONT",90,null,null,"27º",null,null,null,null,null,null,"27º","JEEP","FABIANO","TRÊS RIOS",27,null,null,"27º","XIA","FAMÍLIA MINGAL","PARAÍBA DO SUL",70]
["28º","PIVETE","ALESSANDRO","PARAÍBA DO SUL",83,null,null,"28º",null,null,null,null,null,null,"28º",null,null,null,null,null,null,"28º","FABULOSO","HENRIQUE MORAES","SÃO JOSÉ",66]
["29º","PROFETA","FAMÍLIA HONORATO","PARAÍBA DO SUL",72,null,null,"29º",null,null,null,null,null,null,"29º",null,null,null,null,null,null,"29º","ZÉ INÁCIO","GUSTAVO/JHONATA","PARAÍBA DO SUL",45]
["30º","PURO OSSO","JAJA","SANTOS DUMONT",67,null,null,"30º",null,null,null,null,null,null,"30º",null,null,null,null,null,null,"30º"]
["31º","007","LEONEL","SANTOS DUMONT",65,null,null,"31º",null,null,null,null,null,null,"31º",null,null,null,null,null,null,"31º"]
["32º","BICO DE PRATA","GUSTAVO","PARAÍBA DO SUL",54,null,null,"32º",null,null,null,null,null,null,"32º",null,null,null,null,null,null,"32º"]
["33º","CAPRICHO","WEY/HEITOR","SANTOS DUMONT",49,null,null,"33º",null,null,null,null,null,null,"33º",null,null,null,null,null,null,"33º"]
["34º","COBRA","MAICON","MIGUEL PEREIRA",28,null,null,"34º",null,null,null,null,null,null,"34º",null,null,null,null,null,null,"34º"]
["35º","DOURADO","JE","PARAÍBA DO SUL",18,null,null,"35º",null,null,null,null,null,null,"35º",null,null,null,null,null,null,"35º"]
["36º",null,null,null,null,null,null,"36º",null,null,null,null,null,null,"36º",null,null,null,null,null,null,"36º"]
["37º",null,null,null,null,null,null,"37º",null,null,null,null,null,null,"37º",null,null,null,null,null,null,"37º"]
["38º",null,null,null,null,null,null,"38º",null,null,null,null,null,null,"38º",null,null,null,null,null,null,"38º"]
["39º",null,null,null,null,null,null,"39º",null,null,null,null,null,null,"39º",null,null,null,null,null,null,"39º"]
["40º",null,null,null,null,null,null,"40º",null,null,null,null,null,null,"40º",null,null,null,null,null,null,"40º"]

{"sheet":"nov2025","index":3,"n_rows":42,"n_cols":35,"rows_kept":42,"cut":false,"hidden":false,"merged":[[0,0,0,5],[0,7,0,12],[0,14,0,19],[0,21,0,26],[0,28,0,34]]}
["01/11/2025 (SÁBADO)",null,null,null,null,null,null,"08/11/2025 (SÁBADO)",null,null,null,null,null,null,"15/11/2025 (SÁBADO)",null,null,null,null,null,null,"22/11/2025 (SÁBADO)",null,null,null,null,null,null,"29/11/2025 (SÁBADO)"]
["POS.","PÁSSARO","PROPRIETÁRIO","ORIGEM","CANTOS","PONTOS",null,"POS.","PÁSSARO","PROPRIETÁRIO","ORIGEM","CANTOS","PONTOS",null,"POS.","PÁSSARO","PROPRIETÁRIO","ORIGEM","CANTOS","PONTOS",null,"POS.","PÁSSARO","PROPRIETÁRIO","ORIGEM","CANTOS","PONTOS",null,"POS.","PÁSSARO","PROPRIETÁRIO","ORIGEM","VASS.","CANTOS","PONTOS"]
["1º","MACACO","ILSON","SÃO JOSÉ",204,30,null,"1º","MACACO","ILSON","SÃO JOSÉ",206,30,null,"1º","MACACO LOUCO","ILSON","SÃO JOSÉ",218,30,null,"1º","MACACO","ILSON","SÃO JOSÉ",204,30,null,"1º","METRALHA","RAUANI VALLE","TRÊS RIOS",115,176,30]
["2º","SHEIK","JONAS","TRÊS RIOS",200,28,null,"2º","BOPE","LOIRIN/DOMINGOS","PARAÍBA DO SUL",158,28,null,"2º","TURBINA","DEIVID","JUIZ DE FORA",163,28,null,"2º","MÁGICO","ILSON","SÃO JOSÉ",192,28,null,"2º","MACACO","ILSON","SÃO JOSÉ",118,173,28]
["3º","CRISTAL","FAMÍLIA HONORATO","PARAÍBA DO SUL",198,26,null,"3º","CARRASCO","LUCAS","TRÊS RIOS",150,26,null,"3º","ESPOLETA","RAFAEL SOUZA","NITERÓI",161,26,null,"3º","BONES","EDI WILSON","PETRÓPOLIS",161,26,null,"3º","TRÓIA","BRUNO","TRÊS RIOS",63,171,26]
["4º","TAURUS","HENRIQUE","ANTA",165,24,null,"4º","TIRO CERTO","LEANDRO/GABRIEL","PARAÍBA DO SUL",134,24,null,"4º","MOHAWK","ARTHUR","JUIZ DE FORA",145,24,null,"4º","PIT BULL","JOÃO MARCOS","AREAL",148,24,null,"4º","MENINO MALUCO","BRUNO","TRÊS RIOS",62,162,24]
["5º","BESTEIRINHA","EULER","TRÊS RIOS",142,23,null,"5º","MÁGICO","EDGARD","TRÊS RIOS",131,23,null,"5º","METRALHA","RAUANI VALLE","TRÊS RIOS",145,23,null,"5º","PODEROSO CHEFINHO","RODRIGO/BRUNO","PETRÓPOLIS",147,23,null,"5º","MÁGICO","ILSON","SÃO JOSÉ",116,154,23]
["6º","BOPE","LOIRIN/DOMINGOS","PARAÍBA DO SUL",138,22,null,"6º","FAISCA","JOSÉ SÉRGIO","PARAÍBA DO SUL",129,22,null,"6º","RISGURO","JOANES","PARAÍBA DO SUL",141,22,null,"6º","BAILARINO","MATHEUS/FELIPE","JUIZ DE FORA/M. BARBOSA",144,22,null,"6º","BINHA PRETO","EULER","TRÊS RIOS",71,150,22]
["7º","RESISTENTE","JOSÉ SÉRGIO","PARAÍBA DO SUL",128,21,null,"7º","RAT","THIAGO/RONYELLE","TRÊS RIOS",120,21,null,"7º","CHARADA","UESLEI","PARAÍBA DO SUL",134,21,null,"7º","PIVETE","GILSON/GUSTAVO","TRÊS RIOS/S. DUMONT",143,21,null,"7º","ASTERIX","RATINHO","VALENÇA",56,132,21]
["8º","VENON JÚNIOR","MURILO","TRÊS RIOS",124,20,null,"8º","CARA PRETA","FÁBIO","TRÊS RIOS",103,20,null,"8º","BAILARINO","MATHEUS/FELIPE","JUIZ DE FORA/M. BARBOSA",128,20,null,"8º","SAMÁ","LUCAS","TRÊS RIOS",140,20,null,"8º","MASSACRE","NI SANTANA","TRÊS RIOS",89,122,20]
["9º","PODEROSO CHEFINHO","RODRIGO/BRUNO","PETRÓPOLIS",122,19,null,"9º","FARRAPO DOIDO","JOÃO MARCOS","AREAL",102,19,null,"9º","REVELAÇÃO","ANTÔNIO MENEGUIT","CACHOEIRA DE MACACU",127,19,null,"9º","MIRAGEM","DIEGO TOLEDO","VISCONDE DO RIO BRANCO",130,19,null,"9º","PINTA NEGRA","RATINHO","VALENÇA",92,120,19]
["10º","PHD","MARCELO SOJUF","JUIZ DE FORA",116,18,null,"10º","MURALHA","RAPHAEL","MATIAS BARBOSA",87,18,null,"10º","CRISTAL","FAMÍLIA HONORATO","PARAÍBA DO SUL",117,18,null,"10º","EDWARD","OTONIEL","TRÊS RIOS",116,18,null,"10º","EXPRESSO","RAUANI VALLE","TRÊS RIOS",118,119,18]
["11º","REVELAÇÃO","ANTÔNIO MENEGUIT","CACHOEIRA DE MACACU",110,17,null,"11º","CARA PRETA","DIEGO","MATIAS BARBOSA",84,17,null,"11º","18K","RAUANI VALLE","TRÊS RIOS",114,17,null,"11º","BMW","CT ALPHA","PARAÍBA DO SUL",114,17,null,"11º","BAILARINO","MATHEUS/FELIPE","JUIZ DE FORA",111,119,17]
["12º","AK TROVÃO","ALEX LAMA/JOSÉ SÉRGIO","PARAÍBA DO SUL",105,16,null,"12º","REVELAÇÃO","ANTÔNIO MENEGUIT","CACHOEIRA DE MACACU",83,16,null,"12º","BBS","DHACO","PARAÍBA DO SUL",110,16,null,"12º","OURO FINO","LUCAS","TRÊS RIOS",113,16,null,"12º","THANOS","SILAS","TRÊS RIOS",70,116,16]
["13º","NEIMAR","ALEX LAMA/JOSÉ SÉRGIO","PARAÍBA DO SUL",94,15,null,"13º","PIVETE","GUSTAVO/GILSON","TRÊS RIOS/S. DUMONT",79,15,null,"13º","PODEROSO CHEFINHO","RODRIGO/BRUNO","PETRÓPOLIS",107,15,null,"13º","GARGAMEL","LUIZ PENA BRANCA","JUIZ DE FORA",112,15,null,"13º","PIT BULL","HENRIQUE","ANTA",95,107,15]
["14º","BAILARINO","MATHEUS/FELIPE","JUIZ DE FORA/M. BARBOSA",93,14,null,"14º","TAURUS","HENRIQUE","ANTA",71,14,null,"14º","FORJA","HENRIQUE MORAES","SÃO JOSÉ",106,14,null,"14º","RM SEM FREIO","WILSON LÚCIO","JUIZ DE FORA",108,14,null,"14º","MOHAWK","ARTHUR","JUIZ DE FORA",93,107,14]
["15º","FAISCA","JOSÉ SÉRGIO","PARAÍBA DO SUL",92,13,null,"15º","CABALLO","GUSTAVO/GILSON","TRÊS RIOS/S. DUMONT",66,13,null,"15º","INVASÃO","WATILA","JUIZ DE FORA",102,13,null,"15º","REVELAÇÃO","DANILO MOREIRA","TRÊS RIOS",93,13,null,"15º","SINISTRO","MATEUS MEDEIROS","PARAÍBA DO SUL",87,107,13]
["16º","BAIXARIA","FAMÍLIA HONORATO","PARAÍBA DO SUL",86,null,null,"16º",null,null,null,null,null,null,"16º","BOPE","LOIRIN/DOMINGOS","PARAÍBA DO SUL",102,null,null,"16º","DI MENOR","JÚLIO CÉSAR","PETRÓPOLIS",91,null,null,"16º","RENEGADO","GABRIEL","PETRÓPOLIS",94,104]
["17º","BICO DE OURO","FAMÍLIA HONORATO","PARAÍBA DO SUL",84,null,null,"17º",null,null,null,null,null,null,"17º","NEYMAR","JOSÉ SÉRGIO","PARAÍBA DO SUL",98,null,null,"17º","AK TROVÃO","MARCELO GODINHO","PETRÓPOLIS",90,null,null,"17º","INVASÃO","WATILA","JUIZ DE FORA",103,99]
["18º",null,null,null,null,null,null,"18º",null,null,null,null,null,null,"18º","VIRGULINO","CLÁUDIO","TRÊS RIOS",85,null,null,"18º","VENON","MURILO","TRÊS RIOS",86,null,null,"18º","TIRO CERTO","LEANDRO/GABRIEL","PARAÍBA DO SUL",87,98]
["19º",null,null,null,null,null,null,"19º",null,null,null,null,null,null,"19º","BINHA PRETO","EULER","TRÊS RIOS",85,null,null,"19º","PINGA FOGO","LÉO NEGÃO","JUIZ DE FORA",75,null,null,"19º","BOIKA","VALDO","TRÊS RIOS",90,97]
["20º",null,null,null,null,null,null,"20º",null,null,null,null,null,null,"20º","VENON JÚNIOR","MURILO","TRÊS RIOS",82,null,null,"20º","PRESTÍGIO","RUAN","PARAÍBA DO SUL",72,null,null,"20º","MALUQUINHO","GIBA","TRÊS RIOS",69,97]
["21º",null,null,null,null,null,null,"21º",null,null,null,null,null,null,"21º","DO BRONX","ROGÉRIO","JUIZ DE FORA",81,null,null,"21º","VAPO","ROGÉRIO","JUIZ DE FORA",52,null,null,"21º","ABISMO","JHONATAS/GUSTAVO","PARAÍBA DO SUL",70,96]
["22º",null,null,null,null,null,null,"22º",null,null,null,null,null,null,"22º","DOLLAR","ITALLO","PARAÍBA DO SUL",81,null,null,"22º",null,null,null,null,null,null,"22º","AMARELO","WATILA","JUIZ DE FORA",92,89]
["23º",null,null,null,null,null,null,"23º",null,null,null,null,null,null,"23º","BICO DE PRATA","GUSTAVO","PARAÍBA DO SUL",80,null,null,"23º",null,null,null,null,null,null,"23º","CHARADA","UESLEI","PARAÍBA DO SUL",72,80]
["24º",null,null,null,null,null,null,"24º",null,null,null,null,null,null,"24º","CAMPEÃO","RUAN/ISAIAS","TRÊS RIOS",80,null,null,"24º",null,null,null,null,null,null,"24º","CD PIRATA","DANIEL RAMOS","JUIZ DE FORA",81,77]
["25º",null,null,null,null,null,null,"25º",null,null,null,null,null,null,"25º","ESTRANGEIRO","CLÁUDIO","TRÊS RIOS",73,null,null,"25º",null,null,null,null,null,null,"25º","ASTRO","FAMÍLIA MINGAL","PARAÍBA DO SUL",70,53]
["26º",null,null,null,null,null,null,"26º",null,null,null,null,null,null,"26º","RESISTENTE","JOSÉ SÉRGIO","PARAÍBA DO SUL",70,null,null,"26º",null,null,null,null,null,null,"26º","CLONE","GIBA","TRÊS RIOS",87,42]
["27º",null,null,null,null,null,null,"27º",null,null,null,null,null,null,"27º","FLASH","SAULO","TRÊS RIOS",69,null,null,"27º",null,null,null,null,null,null,"27º","ABISMO","PERROTA","PARAÍBA DO SUL",53,42]
["28º",null,null,null,null,null,null,"28º",null,null,null,null,null,null,"28º","FILHO DO VENTO","ILSON","SÃO JOSÉ",62,null,null,"28º",null,null,null,null,null,null,"28º"]
["29º",null,null,null,null,null,null,"29º",null,null,null,null,null,null,"29º","VIGARISTA","LEVI","PARAÍBA DO SUL",56,null,null,"29º",null,null,null,null,null,null,"29º"]
["30º",null,null,null,null,null,null,"30º",null,null,null,null,null,null,"30º","CAMPEÃO","FÁBIO","TRÊS RIOS",52,null,null,"30º",null,null,null,null,null,null,"30º"]
["31º",null,null,null,null,null,null,"31º",null,null,null,null,null,null,"31º",null,null,null,null,null,null,"31º",null,null,null,null,null,null,"31º"]
["32º",null,null,null,null,null,null,"32º",null,null,null,null,null,null,"32º",null,null,null,null,null,null,"32º",null,null,null,null,null,null,"32º"]
["33º",null,null,null,null,null,null,"33º",null,null,null,null,null,null,"33º",null,null,null,null,null,null,"33º",null,null,null,null,null,null,"33º"]
["34º",null,null,null,null,null,null,"34º",null,null,null,null,null,null,"34º",null,null,null,null,null,null,"34º",null,null,null,null,null,null,"34º"]
["35º",null,null,null,null,null,null,"35º",null,null,null,null,null,null,"35º",null,null,null,null,null,null,"35º",null,null,null,null,null,null,"35º"]
["36º",null,null,null,null,null,null,"36º",null,null,null,null,null,null,"36º",null,null,null,null,null,null,"36º",null,null,null,null,null,null,"36º"]
["37º",null,null,null,null,null,null,"37º",null,null,null,null,null,null,"37º",null,null,null,null,null,null,"37º",null,null,null,null,null,null,"37º"]
["38º",null,null,null,null,null,null,"38º",null,null,null,null,null,null,"38º",null,null,null,null,null,null,"38º",null,null,null,null,null,null,"38º"]
["39º",null,null,null,null,null,null,"39º",null,null,null,null,null,null,"39º",null,null,null,null,null,null,"39º",null,null,null,null,null,null,"39º"]
["40º",null,null,null,null,null,null,"40º",null,null,null,null,null,null,"40º",null,null,null,null,null,null,"40º",null,null,null,null,null,null,"40º"]

{"sheet":"dez2025","index":4,"n_rows":42,"n_cols":27,"rows_kept":42,"cut":false,"hidden":false,"merged":[[0,0,0,5],[0,7,0,12],[0,14,0,19],[0,21,0,26]]}
["06/12/2025 (SÁBADO)",null,null,null,null,null,null,"13/12/2025 (SÁBADO)",null,null,null,null,null,null,"20/12/2025 (SÁBADO)",null,null,null,null,null,null,"27/12/2025 (SÁBADO)"]
["POS.","PÁSSARO","PROPRIETÁRIO","ORIGEM","CANTOS","PONTOS",null,"POS.","PÁSSARO","PROPRIETÁRIO","ORIGEM","CANTOS","PONTOS",null,"POS.","PÁSSARO","PROPRIETÁRIO","ORIGEM","CANTOS","PONTOS",null,"POS.","PÁSSARO","PROPRIETÁRIO","ORIGEM","CANTOS","PONTOS"]
["1º","MARAVILHA","BRUNO PLACAS","SÃO JOSÉ",231,30,null,"1º","PÉROLA NEGRA","ROMÁRIO","PETRÓPOLIS",202,30,null,"1º",null,null,null,null,30,null,"1º",null,null,null,null,30]
["2º","BAILARINO","MATHEUS/FELIPE","MATIAS BARBOSA",210,28,null,"2º","MÁGICO","ILSON","SÃO JOSÉ",186,28,null,"2º",null,null,null,null,28,null,"2º",null,null,null,null,28]
["3º","MÁGICO","ILSON","SÃO JOSÉ",184,26,null,"3º","MAVERICK","ANDRÉ LUÍS","PARAÍBA DO SUL",175,26,null,"3º",null,null,null,null,26,null,"3º",null,null,null,null,26]
["4º","MACACO","ILSON","SÃO JOSÉ",170,24,null,"4º","MACACO","ILSON","SÃO JOSÉ",173,24,null,"4º",null,null,null,null,24,null,"4º",null,null,null,null,24]
["5º","METRALHA","RAUANI VALLE","TRÊS RIOS",158,23,null,"5º","ZIDANE","GUSTAVO/JHONATA","PARAÍBA DO SUL",167,23,null,"5º",null,null,null,null,23,null,"5º",null,null,null,null,23]
["6º","FARRAPO DOIDO","JOÃO MARCOS","AREAL",150,22,null,"6º","VENENO","ALESSANDRO","PARAÍBA DO SUL",162,22,null,"6º",null,null,null,null,22,null,"6º",null,null,null,null,22]
["7º","MAGISTRAL","REGINALDO","PETRÓPOLIS",149,21,null,"7º","JILÓ","GABRIEL/WL FAM.MINGAL","PARAÍBA DO SUL",159,21,null,"7º",null,null,null,null,21,null,"7º",null,null,null,null,21]
["8º","PESADELO","HENRIQUE","ANTA",141,20,null,"8º","POP STAR","BAIANO","VASSOURAS",146,20,null,"8º",null,null,null,null,20,null,"8º",null,null,null,null,20]
["9º","MENINO MALUCO","BRUNO","TRÊS RIOS",130,19,null,"9º","SERENO","ROMÁRIO","AREAL",146,19,null,"9º",null,null,null,null,19,null,"9º",null,null,null,null,19]
["10º","SELVAGEM","JOSENILTON","PARAÍBA DO SUL",115,18,null,"10º","IMPERADOR","GILSON/GUSTAVO","SANTOS DUMONT",138,18,null,"10º",null,null,null,null,18,null,"10º",null,null,null,null,18]
["11º","PHD","MARCELO SOJUF","JUIZ DE FORA",113,17,null,"11º","EDWARD","OTONIEL","TRÊS RIOS",136,17,null,"11º",null,null,null,null,17,null,"11º",null,null,null,null,17]
["12º","RENEGADO","GABRIEL","PETRÓPOLIS",111,16,null,"12º","RABO DE PEIXE","LUCIMAR/L. HENRIQUE","TRÊS RIOS",126,16,null,"12º",null,null,null,null,16,null,"12º",null,null,null,null,16]
["13º","RABO DE PEIXE","LUCIMAR/LUIZ HENRIQUE","TRÊS RIOS",110,15,null,"13º","BINHA PRETO","EULER","TRÊS RIOS",126,15,null,"13º",null,null,null,null,15,null,"13º",null,null,null,null,15]
["14º","FORA DA LEI","GILSON/GUSTAVO","TRÊS RIOS/S. DUMONT",103,14,null,"14º","FLASH","RODRIGO","SÃO JOSÉ",125,14,null,"14º",null,null,null,null,14,null,"14º",null,null,null,null,14]
["15º","XEQUE MATE","RODRIGO","SÃO JOSÉ",101,13,null,"15º","RISQUINHO","JOANE","PARAÍBA DO SUL",112,13,null,"15º",null,null,null,null,13,null,"15º",null,null,null,null,13]
["16º","ARRASCAETA","HENRIQUE","PARAÍBA DO SUL",100,null,null,"16º","V8","SANDRINHO","TRÊS RIOS",111,null,null,"16º",null,null,null,null,null,null,"16º"]
["17º","RAT","THIAGO/RONYELLE","TRÊS RIOS",92,null,null,"17º","ANDROID","HENRIQUE","ANTA",109,null,null,"17º",null,null,null,null,null,null,"17º"]
["18º","MEGA SENA","LUCAS","TRÊS RIOS",87,null,null,"18º","COISA LINDA","LUCAS","TRÊS RIOS",101,null,null,"18º",null,null,null,null,null,null,"18º"]
["19º","FLAMENGO","GEGE","TRÊS RIOS",83,null,null,"19º","PRIVADO","RODRIGO","SÃO JOSÉ",96,null,null,"19º",null,null,null,null,null,null,"19º"]
["20º","PATO DONALD","REGINALDO","PETRÓPOLIS",73,null,null,"20º","CORINGA","SAMIRIS","SÃO JOSÉ",95,null,null,"20º",null,null,null,null,null,null,"20º"]
["21º","BITOLÃO","LUCAS MENEGUIT","CACHOEIRA DE MACACU",69,null,null,"21º","SHELBY","UILIAN/ISAAC","TRÊS RIOS",91,null,null,"21º",null,null,null,null,null,null,"21º"]
["22º","REVELAÇÃO","ANTÔNIO MENEGUIT","CACHOEIRA DE MACACU",67,null,null,"22º","TIO PATINHAS","VICTOR","TRÊS RIOS",78,null,null,"22º",null,null,null,null,null,null,"22º"]
["23º","CHUCALHO DE COBRA","LUCIMAR/LUIZ HENRIQUE","TRÊS RIOS",65,null,null,"23º","PIRRALHO","TAVIEL","TRÊS RIOS",68,null,null,"23º",null,null,null,null,null,null,"23º"]
["24º","MASSACRE","NI SANTANA","TRÊS RIOS",57,null,null,"24º","PHD","MARCELO SOJUF","JUIZ DE FORA",65,null,null,"24º",null,null,null,null,null,null,"24º"]
["25º","SHELBY","UILIAN/ISAAC","TRÊS RIOS",29,null,null,"25º","POPAYE","FÁBIO","TRÊS RIOS",57,null,null,"25º",null,null,null,null,null,null,"25º"]
["26º",null,null,null,null,null,null,"26º","MAVERICK","FERNANDO","PETRÓPOLIS",54,null,null,"26º",null,null,null,null,null,null,"26º"]
["27º",null,null,null,null,null,null,"27º","ZÉ INÁCIO","GUSTAVO/JHONATA","PARAÍBA DO SUL",47,null,null,"27º",null,null,null,null,null,null,"27º"]
["28º",null,null,null,null,null,null,"28º","CAMPEÃO","FÁBIO","TRÊS RIOS",44,null,null,"28º",null,null,null,null,null,null,"28º"]
["29º",null,null,null,null,null,null,"29º","CARA PRETA","EDGAR","TRÊS RIOS",28,null,null,"29º",null,null,null,null,null,null,"29º"]
["30º",null,null,null,null,null,null,"30º",null,null,null,null,null,null,"30º",null,null,null,null,null,null,"30º"]
["31º",null,null,null,null,null,null,"31º",null,null,null,null,null,null,"31º",null,null,null,null,null,null,"31º"]
["32º",null,null,null,null,null,null,"32º",null,null,null,null,null,null,"32º",null,null,null,null,null,null,"32º"]
["33º",null,null,null,null,null,null,"33º",null,null,null,null,null,null,"33º",null,null,null,null,null,null,"33º"]
["34º",null,null,null,null,null,null,"34º",null,null,null,null,null,null,"34º",null,null,null,null,null,null,"34º"]
["35º",null,null,null,null,null,null,"35º",null,null,null,null,null,null,"35º",null,null,null,null,null,null,"35º"]
["36º",null,null,null,null,null,null,"36º",null,null,null,null,null,null,"36º",null,null,null,null,null,null,"36º"]
["37º",null,null,null,null,null,null,"37º",null,null,null,null,null,null,"37º",null,null,null,null,null,null,"37º"]
["38º",null,null,null,null,null,null,"38º",null,null,null,null,null,null,"38º",null,null,null,null,null,null,"38º"]
["39º",null,null,null,null,null,null,"39º",null,null,null,null,null,null,"39º",null,null,null,null,null,null,"39º"]
["40º",null,null,null,null,null,null,"40º",null,null,null,null,null,null,"40º",null,null,null,null,null,null,"40º"]